bitfinex/quotes_ETHUSD_20250806
["timestamp","ask_amount","ask_price","bid_price","bid_amount"]
[1754490095570,40.42235175,3607.2,3607.1,0.04]
[1754490095765,43.19458506,3607.2,3607.1,0.04]
[1754490096667,2.77254075,3606.8,3606.7,0.002]
[1754490096877,2.77300205,3606.2,3606.1,0.04]
[1754490097040,40.82640205,3606.2,3606.1,0.04]
[1754490097249,42.21080205,3606.2,3606.1,0.04]
[1754490097442,41.74860205,3606.2,3606.1,0.04]
[1754490097833,39.4378,3606.2,3606.1,0.04]
[1754490098034,42.21080205,3606.2,3606.1,0.04]
[1754490098375,49.58703511,3606.2,3606.1,0.04]
[1754490098544,46.81403306,3606.2,3606.1,0.04]
[1754490098950,37.916,3606.2,3606.1,0.04]
[1754490099776,45.22203511,3606.2,3606.1,0.04]
[1754490100171,46.81503306,3606.2,3606.1,0.04]
[1754490100371,3.0,3606.2,3606.1,0.9143]
[1754490100669,4.366,3606.2,3606.1,0.9143]
[1754490100871,4.366,3606.2,3606.1,1.3839]
[1754490101070,0.96311351,3606.3,3606.2,2.77300205]
[1754490101269,0.96311351,3606.3,3606.2,4.11690205]
[1754490101270,5.32911351,3606.3,3606.2,4.11690205]
[1754490101435,0.96311351,3606.3,3606.2,4.11690205]
[1754490101640,5.32911351,3606.3,3606.2,4.11690205]
[1754490101861,5.32911351,3606.3,3606.2,4.81009347]
[1754490101862,0.96311351,3606.3,3606.2,4.81009347]
[1754490102065,5.32911351,3606.3,3606.2,4.81009347]
[1754490102243,0.96311351,3606.3,3606.2,4.81009347]
[1754490103652,0.96311351,3606.3,3606.2,7.81009347]
[1754490105988,4.366,3606.8,3606.3,0.55]
[1754490106185,4.366,3606.9,3606.8,2.77254075]
[1754490106347,6.664,3608.0,3607.7,2.77183252]
[1754490106677,4.366,3607.9,3607.7,0.8743]
[1754490107684,4.366,3607.8,3607.7,0.8743]
[1754490108281,4.366,3607.8,3607.7,3.6461491]
[1754490108480,6.664,3608.0,3607.9,2.77169544]
[1754490108645,7.1252,3609.3,3607.9,1.3439]
[1754490108850,4.366,3608.8,3608.3,2.77135344]
[1754490109176,7.5852,3609.3,3608.0,0.8743]
[1754490109177,0.1784,3608.9,3608.7,2.77107499]
[1754490109370,4.366,3608.8,3608.7,2.77107499]
[1754490109572,4.406,3608.9,3608.8,2.90940421]
[1754490109770,0.04,3608.9,3608.8,3.24060421]
[1754490109979,4.406,3608.9,3608.8,4.11490421]
[1754490110149,4.406,3608.9,3608.8,4.86160424]
[1754490111902,4.406,3608.9,3608.8,4.39200424]
[1754490112213,0.041,3608.9,3608.8,5.52790424]
[1754490113247,0.041,3608.9,3608.8,4.97790424]
[1754490113689,0.041,3608.9,3608.8,5.52790424]
[1754490114765,1e-08,3608.9,3608.8,8.52790424]
[1754490115207,1e-08,3609.3,3609.2,3.3206971]
[1754490115355,1e-08,3609.3,3609.2,7.25755215]
[1754490115555,1e-08,3609.3,3609.2,8.75194518]
[1754490115790,0.001,3610.0,3609.9,3.32015983]
[1754490116187,0.001,3610.3,3610.2,3.31992964]
[1754490116388,0.001,3610.3,3610.2,4.38861968]
[1754490116593,0.001,3610.3,3610.2,5.88302039]
[1754490117059,0.001,3610.3,3610.2,5.33302039]
[1754490117565,0.001,3610.3,3610.2,4.88552039]
[1754490118316,0.001,3610.3,3610.2,5.36071968]
[1754490118521,0.001,3610.3,3610.2,5.33302039]
[1754490119071,0.001,3610.3,3610.2,3.94932039]
[1754490119409,0.001,3610.3,3610.2,2.90832964]
[1754490120334,0.001,3610.3,3610.2,4.29202964]
[1754490120478,0.001,3610.3,3610.2,7.86972893]
[1754490120823,0.001,3610.3,3610.2,7.84202964]
[1754490121376,1e-08,3610.3,3610.2,7.84202964]
[1754490121576,1e-08,3610.3,3610.2,9.33943412]
[1754490124623,1e-08,3610.3,3610.2,7.40573412]
[1754490124917,1e-08,3610.3,3610.2,4.40573412]
[1754490125092,1e-08,3610.3,3610.2,7.26932964]
[1754490125293,1e-08,3610.3,3610.2,2.90832964]
[1754490125993,1.38110001,3610.3,3610.2,2.90832964]
[1754490127088,1.38110001,3610.3,3610.2,0.1384]
[1754490127421,1.38110001,3610.3,3610.0,0.1384]
[1754490127587,1.3811,3610.2,3610.0,0.1384]
[1754490127790,1.3811,3610.2,3609.9,2.77014575]
[1754490127981,0.922,3610.1,3610.0,2.7700831]
[1754490128209,1e-08,3610.3,3610.0,0.1384]
[1754490128485,1e-08,3610.3,3610.2,2.90832964]
[1754490128685,1e-08,3610.3,3610.2,3.47616392]
[1754490129209,1e-08,3610.3,3610.2,4.44006321]
[1754490129543,1e-08,3610.3,3610.2,3.47616392]
[1754490129721,1e-08,3610.3,3610.2,4.41236392]
[1754490130089,1e-08,3610.3,3610.2,3.47616392]
[1754490130286,1e-08,3610.3,3610.2,2.90832964]
[1754490130493,1.38110001,3610.3,3610.2,2.90832964]
[1754490131421,1e-08,3610.3,3610.2,2.90832964]
[1754490131822,0.92200001,3610.3,3610.2,0.1384]
[1754490131997,1.38110001,3610.3,3610.2,0.1384]
[1754490132200,1.38110001,3610.3,3609.8,2.77022885]
[1754490132511,1.3811,3610.2,3610.0,0.1384]
[1754490132728,1.3811,3610.1,3610.0,0.1384]
[1754490133239,1.3811,3610.1,3609.8,2.90862928]
[1754490133390,0.4591,3610.0,3609.8,2.90862928]
[1754490133589,0.13840001,3610.3,3610.1,0.002]
[1754490133998,1e-08,3610.3,3610.2,2.76992964]
[1754490134199,1e-08,3610.3,3610.2,3.46253062]
[1754490135432,1e-08,3610.3,3610.2,5.39623062]
[1754490135620,1e-08,3610.3,3610.2,5.42392991]
[1754490135841,1e-08,3610.3,3610.2,9.78392991]
[1754490136034,1e-08,3610.3,3610.2,9.75623062]
[1754490137145,1e-08,3610.3,3610.2,4.01253062]
[1754490137749,1e-08,3610.3,3610.2,3.46253062]
[1754490137951,1e-08,3610.3,3610.2,2.90832964]
[1754490138343,1.38110001,3610.3,3610.2,2.90832964]
[1754490140448,1.38110001,3610.3,3610.2,0.1384]
[1754490140767,1.38110001,3610.3,3610.1,0.002]
[1754490140972,35.6402,3610.2,3609.1,0.002]
[1754490141146,0.1384,3609.7,3609.1,0.002]
[1754490141345,0.1384,3609.5,3609.1,0.002]
[1754490141721,1.2802,3609.4,3609.1,0.002]
[1754490142136,1.2802,3609.3,3609.1,0.002]
[1754490142356,1.2802,3609.3,3609.1,2.77275901]
[1754490142554,1.2802,3609.2,3609.1,0.002]
[1754490144373,0.8519,3609.6,3609.1,0.57021781]
[1754490144664,1.2802,3609.5,3609.1,2.91114448]
[1754490144958,0.1384,3609.7,3609.5,2.77045996]
[1754490145161,0.1384,3609.7,3609.5,2.77043537]
[1754490145468,1.2802,3609.6,3609.4,0.1384]
[1754490145963,0.4283,3609.5,3609.4,2.90892274]
[1754490146130,4.36,3610.0,3609.6,2.77038766]
[1754490146325,1.2802,3609.9,3609.6,2.77038766]
[1754490146527,0.1384,3610.1,3609.8,2.77018642]
[1754490146730,4.36,3610.0,3609.9,2.90855983]
[1754490146963,1e-08,3610.3,3610.2,2.76992964]
[1754490147288,1e-08,3610.3,3610.2,3.4623249]
[1754490147576,1e-08,3610.3,3610.2,2.90832964]
[1754490149485,1e-08,3610.3,3610.2,4.24432964]
[1754490149973,1e-08,3610.3,3610.2,4.79432964]
[1754490150730,1e-08,3610.3,3610.2,4.82202893]
[1754490150969,1e-08,3610.3,3610.2,4.79432964]
[1754490151143,1e-08,3610.3,3610.2,4.21476415]
[1754490151346,1e-08,3610.3,3610.2,2.90832964]
[1754490152082,0.85190001,3610.3,3610.2,2.90832964]
[1754490152243,1e-08,3610.3,3610.2,2.90832964]
[1754490155883,0.85190001,3610.3,3610.2,2.90832964]
[1754490156083,1.28020001,3610.3,3610.2,0.1384]
[1754490156289,1.28020001,3610.3,3610.1,0.002]
[1754490156580,1.2802,3610.2,3610.1,0.002]
[1754490157666,1.4186,3610.2,3610.1,0.002]
[1754490158180,4.4186,3610.2,3609.1,0.002]
[1754490158394,0.1384,3609.5,3609.1,0.002]
[1754490158760,0.1384,3609.2,3609.1,0.002]
[1754490159295,1.4186,3609.2,3609.1,0.002]
[1754490159526,34.9686,3609.2,3609.1,0.002]
[1754490159658,38.10475855,3609.2,3609.1,0.002]
[1754490160958,37.7392971,3609.2,3609.1,0.002]
[1754490161270,34.9686,3609.2,3609.1,0.002]
[1754490161471,39.1692971,3609.2,3609.1,1e-08]
[1754490161684,6.32131138,3608.4,3608.3,0.002]
[1754490162014,40.68131138,3608.4,3608.3,0.002]
[1754490162353,41.96151138,3608.4,3608.3,0.002]
[1754490163079,42.70024925,3608.4,3608.3,0.002]
[1754490163596,50.21488231,3608.4,3608.3,0.002]
[1754490164756,49.84160589,3608.4,3608.3,0.002]
[1754490164952,44.93160589,3608.4,3608.3,0.002]
[1754490165159,38.6582,3608.4,3608.3,0.002]
[1754490165663,49.85960589,3608.4,3608.3,0.002]
[1754490165869,50.23288231,3608.4,3608.3,0.002]
[1754490167008,3.55,3607.3,3607.1,0.04]
[1754490167205,40.51469476,3607.2,3607.1,0.04]
[1754490167504,39.02266145,3607.2,3607.1,0.04]
[1754490167705,34.64566145,3607.2,3607.1,0.04]
[1754490167907,41.97943331,3607.2,3607.1,0.04]
[1754490168208,39.2072,3607.2,3607.1,0.04]
[1754490168573,38.6572,3607.2,3607.1,0.04]
[1754490168882,39.60392713,3607.2,3607.1,0.04]
[1754490169084,38.32372713,3607.2,3607.1,0.04]
[1754490170098,39.60392713,3607.2,3607.1,0.04]
[1754490170474,38.32372713,3607.2,3607.1,0.04]
[1754490170676,3.94672713,3607.2,3607.1,0.04]
[1754490170875,8.32272713,3607.2,3607.1,0.04]
[1754490171108,39.66472713,3607.2,3607.1,0.04]
[1754490171818,39.80312713,3607.2,3607.1,0.04]
[1754490174690,34.08512713,3607.2,3607.1,0.04]
[1754490175023,9.34702713,3607.2,3607.1,0.04]
[1754490175182,8.46112713,3607.2,3607.1,0.04]
[1754490175387,8.46412713,3607.2,3607.1,0.04]
[1754490175796,38.46412713,3607.2,3607.1,0.04]
[1754490175995,39.80612713,3607.2,3607.1,0.04]
[1754490177520,39.35002713,3607.2,3607.1,0.042]
[1754490177919,38.46412713,3607.2,3607.1,0.042]
[1754490178518,39.80612713,3607.2,3607.1,0.042]
[1754490178827,38.46412713,3607.2,3607.1,0.042]
[1754490179028,30.94672713,3607.2,3607.1,2.81431016]
[1754490179191,5.32372713,3607.2,3607.1,0.922]
[1754490179921,5.32372713,3607.2,3607.1,0.042]
[1754490180299,0.94672713,3607.2,3607.1,3.69431016]
[1754490180484,5.32372713,3607.2,3607.1,3.69431016]
[1754490180681,5.32372713,3607.2,3607.1,0.042]
[1754490180938,5.28872713,3607.2,3607.1,0.042]
[1754490181144,9.66372713,3607.2,3607.1,0.042]
[1754490182216,42.98596044,3607.2,3607.1,0.042]
[1754490184442,40.21372713,3607.2,3607.1,0.042]
[1754490184604,42.98596044,3607.2,3607.1,0.042]
[1754490185347,13.74303165,3607.2,3607.1,0.042]
[1754490185754,42.98596044,3607.2,3607.1,0.042]
[1754490186527,43.36975523,3607.2,3607.1,0.042]
[1754490186728,6.32254075,3606.8,3606.7,0.002]
[1754490186908,47.35554075,3606.8,3606.7,0.002]
[1754490187253,49.70857622,3606.8,3606.7,0.002]
[1754490189006,49.84697622,3606.8,3606.7,0.002]
[1754490191135,48.50497622,3606.8,3606.7,0.002]
[1754490191321,49.84697622,3606.8,3606.7,0.002]
[1754490191521,47.07443547,3606.8,3606.7,0.002]
[1754490191848,45.73243547,3606.8,3606.7,0.002]
[1754490192211,49.77467101,3606.8,3606.7,0.002]
[1754490192360,50.23077101,3606.8,3606.7,0.002]
[1754490192726,41.36143547,3606.8,3606.7,0.002]
[1754490192939,45.72743547,3606.8,3606.7,0.002]
[1754490193660,50.22577101,3606.8,3606.7,0.002]
[1754490194361,20.22577101,3606.8,3606.7,0.002]
[1754490194657,49.84197622,3606.8,3606.7,0.002]
[1754490194962,46.61333547,3606.8,3606.7,0.002]
[1754490195256,49.84197622,3606.8,3606.7,0.002]
[1754490198942,3.32284826,3606.4,3606.3,0.002]
[1754490199175,48.72567611,3606.4,3606.3,0.002]
[1754490199378,51.10320016,3606.4,3606.3,0.002]
[1754490200846,50.71940537,3606.4,3606.3,0.002]
[1754490201880,34.72392405,3606.4,3606.3,0.002]
[1754490202087,41.86277231,3606.4,3606.3,0.002]
[1754490202551,43.17577231,3606.4,3606.3,0.002]
[1754490202754,52.21145947,3606.4,3606.3,0.002]
[1754490202952,51.35735947,3606.4,3606.3,0.002]
[1754490203986,52.67035947,3606.4,3606.3,0.002]
[1754490204165,3.32300205,3606.2,3606.1,0.04]
[1754490204360,40.82840205,3606.2,3606.1,0.04]
[1754490204708,36.70687373,3606.1,3606.0,0.002]
[1754490204888,0.55,3605.5,3605.4,0.002]
[1754490205072,40.82794042,3605.5,3605.4,0.002]
[1754490205279,2.77377121,3605.2,3604.3,0.8627]
[1754490205591,5.77454081,3604.2,3604.1,0.04]
[1754490205790,56.68492276,3604.2,3604.1,0.04]
[1754490206304,49.29898716,3604.2,3604.1,0.04]
[1754490206589,39.8044,3604.2,3604.1,0.9027]
[1754490206887,39.666,3604.2,3604.1,1.3567]
[1754490207062,44.1704,3604.2,3604.1,1.3567]
[1754490207682,39.8044,3604.2,3604.1,1.3567]
[1754490208001,14.1714,3604.2,3604.1,1.3567]
[1754490208355,14.033,3604.2,3604.1,1.3567]
[1754490209454,9.666,3604.2,3604.1,1.3567]
[1754490209755,11.034,3604.2,3604.1,1.3567]
[1754490210098,11.034,3604.2,3604.1,0.9027]
[1754490210252,14.034,3604.2,3604.1,0.04]
[1754490211325,44.034,3604.2,3604.1,0.04]
[1754490211683,39.666,3604.2,3604.1,0.04]
[1754490211991,44.034,3604.2,3604.1,0.04]
[1754490212711,44.584,3604.2,3604.1,0.04]
[1754490212909,56.60766837,3604.2,3604.1,0.04]
[1754490213224,52.14685114,3604.2,3604.1,0.04]
[1754490213423,45.897,3604.2,3604.1,0.04]
[1754490213624,39.666,3604.2,3604.1,0.04]
[1754490213786,44.584,3604.2,3604.1,0.04]
[1754490214324,48.67154081,3604.2,3604.1,0.04]
[1754490214634,49.42861202,3604.2,3604.1,0.04]
[1754490214791,45.4381,3604.2,3604.1,0.04]
[1754490214987,44.584,3604.2,3604.1,0.04]
[1754490215193,48.67154081,3604.2,3604.1,0.04]
[1754490215740,15.897,3604.2,3604.1,0.04]
[1754490216023,14.034,3604.2,3604.1,0.04]
[1754490216395,46.19517121,3604.2,3604.1,0.04]
[1754490216591,49.42861202,3604.2,3604.1,0.04]
[1754490217019,38.39461202,3604.2,3604.1,0.04]
[1754490217209,46.65707121,3604.2,3604.1,0.04]
[1754490217388,45.34407121,3604.2,3604.1,0.04]
[1754490217615,44.587,3604.2,3604.1,0.04]
[1754490217816,44.037,3604.2,3604.1,0.04]
[1754490218221,44.1754,3604.2,3604.1,0.04]
[1754490218435,44.7254,3604.2,3604.1,0.04]
[1754490218740,46.0384,3604.2,3604.1,0.04]
[1754490219030,44.7274,3604.2,3604.1,0.04]
[1754490219545,47.50194081,3604.2,3604.1,0.04]
[1754490219720,48.35604081,3604.2,3604.1,0.04]
[1754490220036,46.79747121,3604.2,3604.1,0.04]
[1754490220193,46.0404,3604.2,3604.1,0.04]
[1754490220393,48.81494081,3604.2,3604.1,0.04]
[1754490220807,46.0404,3604.2,3604.1,0.04]
[1754490221140,40.3574,3604.2,3604.1,0.04]
[1754490221439,48.81494081,3604.2,3604.1,0.04]
[1754490221796,49.57201202,3604.2,3604.1,0.04]
[1754490222805,19.57201202,3604.2,3604.1,0.04]
[1754490223232,49.57201202,3604.2,3604.1,0.04]
[1754490223499,49.68325902,3604.2,3604.1,0.04]
[1754490224332,3.32484877,3603.8,3603.7,0.002]
[1754490224531,48.76837633,3603.8,3603.7,0.002]
[1754490224707,3.32507978,3603.5,3603.4,0.01958949]
[1754490224909,0.55,3603.2,3603.1,0.04]
[1754490225262,0.55,3602.5,3601.6,0.8627]
[1754490225403,3.55,3602.3,3601.8,0.8627]
[1754490225601,41.039,3602.4,3601.9,0.454]
[1754490225602,37.5082,3602.2,3601.9,0.454]
[1754490225799,39.02251737,3602.2,3601.4,0.454]
[1754490226119,8.47251737,3602.2,3602.1,0.494]
[1754490226303,8.47251737,3602.2,3602.1,1.3567]
[1754490226941,1.10351737,3602.2,3602.1,1.3567]
[1754490227106,5.33431737,3602.2,3602.1,4.13285835]
[1754490227306,5.33431737,3602.2,3602.1,1.3567]
[1754490227835,5.33431737,3602.2,3602.1,4.13285835]
[1754490228048,0.96431737,3602.2,3602.1,4.13285835]
[1754490228246,5.33631737,3602.2,3602.1,4.13285835]
[1754490228396,0.96431737,3602.2,3602.1,4.13285835]
[1754490228602,0.96431737,3602.2,3602.1,4.82376873]
[1754490228917,5.33631737,3602.2,3602.1,4.82376873]
[1754490229310,0.96431737,3602.2,3602.1,4.82376873]
[1754490229737,5.33531737,3602.2,3602.1,4.82376873]
[1754490230847,5.33531737,3602.2,3602.1,2.04761038]
[1754490231047,5.33531737,3602.2,3602.1,1.3567]
[1754490231198,5.33531737,3602.2,3602.1,0.9027]
[1754490232236,0.96431737,3602.2,3602.1,0.9027]
[1754490232439,5.33331737,3602.2,3602.1,0.9027]
[1754490233456,0.96431737,3602.2,3602.1,0.9027]
[1754490233657,5.33331737,3602.2,3602.1,0.9027]
[1754490233872,0.96431737,3602.2,3602.1,0.04]
[1754490234035,5.33331737,3602.2,3602.1,0.04]
[1754490234225,5.59263582,3602.2,3602.1,0.04]
[1754490234420,8.59263582,3602.2,3602.1,0.04]
[1754490234735,9.85473582,3602.2,3602.1,0.04]
[1754490235461,40.40473582,3602.2,3602.1,0.04]
[1754490236337,43.1808171,3602.2,3602.1,0.04]
[1754490236553,43.55409352,3602.2,3602.1,0.04]
[1754490236750,43.93788831,3602.2,3602.1,0.04]
[1754490236934,3.32669795,3601.4,3601.3,0.002]
[1754490237277,33.55,3601.3,3600.1,0.04]
[1754490237451,3.0,3600.4,3600.1,0.04]
[1754490237624,6.46682346,3600.2,3600.1,0.04]
[1754490237962,39.08158966,3600.2,3600.1,0.04]
[1754490238263,40.20448966,3600.2,3600.1,0.04]
[1754490238433,35.45521324,3600.2,3600.1,0.04]
[1754490238634,39.47641845,3600.2,3600.1,0.04]
[1754490239459,42.25404191,3600.2,3600.1,0.04]
[1754490240135,35.07141845,3600.2,3600.1,0.04]
[1754490240462,0.25931845,3600.2,3600.1,0.04]
[1754490240765,0.25931845,3600.7,3600.1,1.3036]
[1754490241068,0.8316,3601.7,3600.1,0.8399]
[1754490241069,4.67931845,3600.6,3600.1,0.8399]
[1754490241289,0.25931845,3600.5,3600.1,0.04]
[1754490241446,3.0,3600.4,3600.1,0.04]
[1754490241773,3.0,3600.2,3600.1,0.04]
[1754490241930,3.25931845,3600.2,3600.1,0.04]
[1754490242131,0.8316,3601.8,3600.2,2.77758733]
[1754490242357,41.35406156,3601.6,3600.3,0.4637]
[1754490242571,2.77684681,3601.3,3600.1,0.04]
[1754490242864,35.45530188,3601.2,3600.1,0.04]
[1754490243075,0.55,3600.9,3600.1,0.04]
[1754490243364,3.55,3600.7,3600.1,0.04]
[1754490243530,0.25806156,3600.6,3600.1,0.8399]
[1754490243732,4.424,3600.5,3600.1,0.8399]
[1754490243955,4.68106156,3600.4,3600.2,1.2636]
[1754490244272,4.68206156,3600.3,3600.1,0.04]
[1754490244568,0.25777153,3600.2,3600.1,0.04]
[1754490244820,3.25777153,3600.2,3600.1,0.04]
[1754490245752,3.0,3600.2,3600.1,0.04]
[1754490246129,0.4305,3601.1,3600.1,0.04]
[1754490246379,3.55,3600.9,3600.1,0.04]
[1754490246594,3.55,3600.7,3600.1,0.04]
[1754490246798,34.67863026,3600.6,3600.1,0.04]
[1754490246978,3.0,3600.4,3600.1,0.04]
[1754490247270,3.0,3600.2,3600.1,0.04]
[1754490248354,3.1392,3600.2,3600.1,0.04]
[1754490249057,3.79778966,3600.2,3600.1,0.04]
[1754490249261,5.60988966,3600.2,3600.1,0.04]
[1754490249555,3.39682576,3600.2,3600.1,0.04]
[1754490249754,0.39682576,3600.2,3600.1,0.04]
[1754490250058,3.1392,3600.2,3600.1,0.04]
[1754490250406,7.422,3600.2,3600.1,1.3036]
[1754490250711,7.422,3600.2,3600.1,0.04]
[1754490250873,3.25767122,3600.2,3600.1,0.04]
[1754490251064,3.25767122,3600.2,3600.1,0.8399]
[1754490251065,7.67967122,3600.2,3600.1,0.8399]
[1754490251265,7.67967122,3600.2,3600.1,0.04]
[1754490251676,3.25767122,3600.2,3600.1,0.8399]
[1754490251978,7.67967122,3600.2,3600.1,0.8399]
[1754490252378,7.67967122,3600.2,3600.1,4.08130061]
[1754490252379,4.68067122,3600.2,3600.1,4.08130061]
[1754490252587,4.423,3600.2,3600.1,2.00342858]
[1754490252797,0.95646768,3601.8,3600.1,1.4428]
[1754490252965,0.1392,3600.8,3600.3,0.1392]
[1754490253184,0.1392,3600.8,3600.6,2.77731489]
[1754490253490,0.25776771,3601.3,3600.7,1.4028]
[1754490253657,4.68076771,3601.2,3601.1,2.77687981]
[1754490253863,4.68076771,3601.2,3601.1,0.7999]
[1754490254056,4.68076771,3601.2,3601.1,3.57682927]
[1754490254307,4.68076771,3601.2,3601.1,4.04052927]
[1754490255156,4.68076771,3601.2,3601.1,1.2636]
[1754490255569,4.68076771,3601.2,3601.0,0.1392]
[1754490255798,0.25776771,3601.1,3601.0,0.1392]
[1754490255998,0.25776771,3601.1,3601.0,2.91620638]
[1754490256500,0.25776771,3601.1,3601.0,4.7491365]
[1754490256685,4.417,3601.1,3601.0,0.9391]
[1754490256891,0.1392,3601.6,3601.2,2.77680599]
[1754490257088,0.2580562,3601.7,3601.3,1.2636]
[1754490257287,4.416,3601.6,3601.5,0.1392]
[1754490257591,0.25907224,3601.9,3601.8,2.77638958]
[1754490257592,1e-08,3601.9,3601.8,2.77638958]
[1754490257799,4.418,3602.5,3602.1,2.77615835]
[1754490257999,1e-08,3602.2,3602.1,2.77615835]
[1754490258306,0.1394,3603.5,3602.8,2.77561896]
[1754490258600,0.2589754,3603.5,3602.8,2.77561896]
[1754490258759,0.2589754,3603.5,3602.8,4.17761896]
[1754490258959,0.001,3603.5,3603.4,2.77515679]
[1754490259285,0.001,3603.5,3603.4,4.17715679]
[1754490260402,0.001,3603.5,3603.4,4.72715679]
[1754490260602,0.001,3603.5,3603.4,4.92739628]
[1754490260999,0.001,3603.5,3603.4,5.47739628]
[1754490261234,1e-08,3603.5,3603.4,8.47739628]
[1754490262305,1e-08,3603.5,3603.4,7.92739628]
[1754490262700,1e-08,3603.5,3603.4,4.46369628]
[1754490263114,1e-08,3603.5,3603.4,2.91355679]
[1754490263343,1e-08,3603.5,3603.4,4.25125679]
[1754490263703,1e-08,3603.5,3603.4,1.0046]
[1754490264004,1e-08,3603.5,3603.4,2.91355679]
[1754490265830,1e-08,3603.5,3603.4,0.1384]
[1754490266231,1.28430001,3603.5,3603.2,2.77525631]
[1754490266423,5.2695,3603.4,3603.1,2.77536026]
[1754490266620,1.2843,3603.3,3603.1,0.1384]
[1754490267032,1.4227,3603.2,3601.8,0.8662]
[1754490267347,0.1384,3602.8,3602.3,0.1392]
[1754490267548,5.7053,3602.7,3602.3,0.1392]
[1754490267843,0.1384,3602.5,3602.0,0.1392]
[1754490268061,1.4227,3602.5,3602.0,0.1392]
[1754490268208,0.1392,3602.3,3601.8,0.1392]
[1754490268408,1.2843,3602.2,3601.8,0.1392]
[1754490268614,1.2843,3602.1,3601.5,0.1392]
[1754490268805,0.4009639,3602.8,3600.2,0.8662]
[1754490268806,3.0,3601.9,3600.2,0.8662]
[1754490269005,0.1392,3601.6,3601.0,0.1392]
[1754490269448,1.2843,3601.5,3601.0,0.1392]
[1754490269611,1.2843,3601.4,3600.7,2.77718906]
[1754490269812,3.0,3600.9,3600.1,0.04]
[1754490270056,3.0,3600.6,3600.2,0.002]
[1754490270215,34.8229639,3600.8,3600.2,0.002]
[1754490270216,3.0,3600.4,3600.2,0.002]
[1754490270415,33.0,3600.3,3600.2,0.002]
[1754490270643,34.2843,3600.3,3600.2,0.002]
[1754490271743,38.7193,3600.3,3600.2,0.002]
[1754490272172,33.0,3600.3,3600.2,0.002]
[1754490272341,7.437,3600.3,3600.2,0.002]
[1754490273633,7.435,3600.3,3600.2,0.002]
[1754490274110,8.7193,3600.3,3600.2,0.002]
[1754490274756,7.435,3600.3,3600.2,0.002]
[1754490274969,3.0,3600.3,3600.2,0.002]
[1754490275134,7.435,3600.3,3600.2,0.002]
[1754490275856,0.8495,3601.5,3600.2,1.3397]
[1754490276016,4.434,3601.5,3601.1,2.77687609]
[1754490276221,6.674,3602.1,3601.1,0.5553935]
[1754490276523,4.69302838,3602.0,3601.6,2.77652467]
[1754490276717,3.0,3601.9,3601.1,0.8662]
[1754490277052,4.436,3602.0,3601.1,0.8662]
[1754490277250,4.436,3602.0,3601.2,2.77685216]
[1754490277454,4.436,3602.0,3601.3,0.41145522]
[1754490277653,3.0,3601.9,3601.3,0.4715]
[1754490277865,3.0,3601.9,3601.2,0.8662]
[1754490280331,37.75104631,3600.3,3600.2,0.002]
[1754490280663,34.9735,3600.3,3600.2,0.002]
[1754490280860,35.3744639,3600.3,3600.2,0.002]
[1754490281060,34.9735,3600.3,3600.2,0.002]
[1754490281381,8.15201021,3600.3,3600.2,0.002]
[1754490281586,38.15201021,3600.3,3600.2,0.002]
[1754490282129,38.00828795,3600.3,3600.2,0.002]
[1754490282428,42.46228795,3600.3,3600.2,0.002]
[1754490283439,39.68474164,3600.3,3600.2,0.002]
[1754490283788,42.46228795,3600.3,3600.2,0.002]
[1754490284571,35.23074164,3600.3,3600.2,0.002]
[1754490284865,34.68074164,3600.3,3600.2,0.002]
[1754490285067,41.90628795,3600.3,3600.2,0.002]
[1754490285366,42.45628795,3600.3,3600.2,0.002]
[1754490285863,42.85725185,3600.3,3600.2,0.002]
[1754490286698,42.85725185,3600.3,3599.1,0.04]
[1754490286699,0.55,3600.0,3599.1,0.04]
[1754490286985,3.6892,3599.2,3599.1,0.04]
[1754490287181,12.19889519,3599.2,3599.1,0.04]
[1754490287502,42.19889519,3599.2,3599.1,0.04]
[1754490287656,49.76174633,3599.2,3599.1,0.04]
[1754490287838,50.16271023,3599.2,3599.1,0.04]
[1754490288039,42.59985909,3599.2,3599.1,0.04]
[1754490288639,42.85654709,3599.2,3599.1,0.04]
[1754490288852,42.59985909,3599.2,3599.1,0.04]
[1754490289048,39.53596851,3599.2,3599.1,0.04]
[1754490289356,42.19689519,3599.2,3599.1,0.04]
[1754490289551,39.4185,3599.2,3599.1,0.04]
[1754490289873,33.94583513,3599.2,3599.1,0.04]
[1754490290096,35.23013513,3599.2,3599.1,0.04]
[1754490290292,33.39583513,3599.2,3599.1,0.04]
[1754490290495,33.1392,3599.2,3599.1,0.04]
[1754490290811,0.1392,3599.2,3599.1,0.9062]
[1754490291008,6.93357002,3600.3,3599.2,2.77839519]
[1754490291185,30.0,3600.2,3599.4,2.77818296]
[1754490291502,30.0,3600.2,3599.4,2.91738296]
[1754490291503,0.1392,3599.9,3599.4,2.91738296]
[1754490291705,4.446,3599.8,3599.4,0.90424751]
[1754490291906,0.1392,3599.9,3599.5,1.2664]
[1754490292109,4.445,3599.8,3599.5,1.2664]
[1754490292303,0.1392,3600.1,3599.6,0.4353]
[1754490292604,6.677,3600.3,3599.7,0.1392]
[1754490292605,4.445,3600.0,3599.7,0.1392]
[1754490292798,0.1392,3599.9,3599.7,2.77793829]
[1754490292989,6.677,3600.3,3599.7,3.21330927]
[1754490292990,4.445,3599.8,3599.7,3.21330927]
[1754490293198,0.1392,3600.1,3599.8,0.4353]
[1754490293384,4.444,3600.0,3599.2,2.77838738]
[1754490293569,4.444,3600.0,3599.1,0.04]